fUSD/lending_fUSD_20260105
["ID","MTS","AMOUNT","RATE_DAILY","PERIOD"]
[400464978,1767589831530,-150.0,0.00017726,2]
[400464979,1767589831540,-150.0,0.00017781,2]
[400464980,1767589831549,-300.0,0.00017799,2]
[400464981,1767589831558,-7796.656966,0.000178,2]
[400464982,1767589831568,-1968.6988361,0.000178,2]
[400464983,1767589831577,-100155.05196658,0.000178,2]
[400464984,1767589831589,-428.83006423,0.000178,2]
[400464985,1767589831600,-1491.53744342,0.000178,2]
[400464986,1767589831613,-1961.94354208,0.000178,2]
[400464987,1767589831624,-1122.83573015,0.000178,2]
[400464988,1767589831635,-500.00522945,0.000178,2]
[400464989,1767589831646,-100214.45866638,0.000178,2]
[400464990,1767589831657,-1748.22741199,0.000178,2]
[400465001,1767589837662,-522.5933998,0.000178,2]
[400465002,1767589837776,-150669.31423052,0.000178,2]
[400465003,1767589837786,-150.0,0.00017836,2]
[400465004,1767589837796,-200.0,0.00017856,2]
[400465005,1767589837805,-150.0,0.0001789,2]
[400465006,1767589837815,-168.0,0.00017895,2]
[400465007,1767589837825,-11543.72033093,0.000179,2]
[400465009,1767589837834,-150.0,0.00017945,2]
[400465011,1767589837843,-168.0,0.00017973,2]
[400465013,1767589837852,-168.0,0.00017989,2]
[400465014,1767589837861,-151.0,0.00017997,2]
[400465015,1767589837870,-150.0,0.00018,2]
[400465016,1767589837879,-150.0,0.00018,2]
[400465017,1767589837888,-1329.0,0.00018,2]
[400465018,1767589837898,-1404.0,0.00018,2]
[400465019,1767589837907,-614.0,0.00018,2]
[400465020,1767589837916,-913.0,0.00018,2]
[400465021,1767589837925,-1200.0,0.00018,2]
[400465022,1767589837934,-565.0,0.00018,2]
[400465023,1767589837943,-4812.0,0.00018,2]
[400465024,1767589837952,-2435.0,0.00018,2]
[400465025,1767589837961,-194.0,0.00018,2]
[400465026,1767589837970,-57707.75236614,0.00018,2]
[400465032,1767589839544,-534.00037955,0.00018,2]
[400465033,1767589839601,-281.649,0.00018,2]
[400465034,1767589839656,-481176.77266332,0.00018,2]
[400465054,1767589843191,-4525.59583536,0.00018,2]
[400465055,1767589844963,200.742712,0.00043423,65]
[400465058,1767589845387,-827.55251014,0.00018,2]
[400465059,1767589845501,-783.37377392,0.00018,2]
[400465060,1767589845514,-411.47788058,0.00018,2]
[400465061,1767589845523,-2750.5201174,0.00018,2]
[400465062,1767589845558,-2169.51431042,0.00018,2]
[400465065,1767589860816,500.0,0.00043423,120]
[400465089,1767590161031,500.0,0.00043423,120]
[400465135,1767590461105,500.0,0.0004342,120]
[400465167,1767590677752,500.0,0.0004342,120]
[400465169,1767590678087,483.42436768,0.0004342,120]
[400465178,1767590760705,500.0,0.0004342,120]
[400465198,1767590932141,32040.0,0.0004342,30]
[400465216,1767591031563,-999.0,0.000162,5]
[400465218,1767591031576,-81.67921199,0.000162,5]
[400465219,1767591031586,-162.0,0.000164,2]
[400465220,1767591031596,-398.87669946,0.00016438,2]
[400465221,1767591031733,-3790.51330054,0.00016438,2]
[400465222,1767591031742,-151.0,0.00016935,2]
[400465223,1767591031752,-151.0,0.00016935,2]
[400465224,1767591031763,-151.0,0.00016939,2]
[400465225,1767591031772,-151.0,0.00016939,2]
[400465226,1767591031784,-250.0,0.00017,2]
[400465228,1767591031795,-150.0,0.00017031,2]
[400465230,1767591031804,-999.0,0.00017143,3]
[400465232,1767591031813,-177.35,0.0001744,2]
[400465234,1767591031823,-164.1,0.00017457,2]
[400465236,1767591031832,-1256.4,0.00017459,2]
[400465238,1767591031841,-209.11537078,0.0001764,2]
[400465343,1767591037714,-960.89948357,0.0001764,2]
[400465344,1767591037724,-162.0,0.0001768,2]
[400465345,1767591037734,-274.0,0.00017835,2]
[400465346,1767591037743,-200.0,0.00017856,2]
[400465347,1767591037753,-151.35690347,0.000179,7]
[400465348,1767591037763,-2127.8420108,0.00017919,2]
[400465349,1767591037772,-151.216,0.00017945,2]
[400465350,1767591037782,-913.0,0.00018,2]
[400465351,1767591037794,-2435.0,0.00018,2]
[400465352,1767591037803,-11708.77377977,0.00018,2]
[400465353,1767591037814,-10111.1220421,0.00018,2]
[400465354,1767591037825,-284.94490973,0.00018,2]
[400465449,1767591039730,-486807.32266332,0.00018,2]
[400465450,1767591039743,-9819.34607684,0.00018,2]
[400465451,1767591040060,-345.3991808,0.00018,2]
[400465460,1767591043576,-412.72582179,0.00018,2]
[400465461,1767591043691,-196.00117821,0.00018,2]
[400465462,1767591043702,-555.31009445,0.00018,2]
[400465463,1767591043752,-485.305,0.00018,2]
[400465464,1767591044882,-151.0,0.00016994,2]
[400465465,1767591044892,-151.0,0.00016994,2]
[400465466,1767591044902,-5762.93768914,0.00018,2]
[400465474,1767591061407,500.0,0.0004342,120]
[400465487,1767591079139,250.0,0.0004342,120]
[400465553,1767591361407,500.0,0.0004342,120]
[400465571,1767591401636,486258.77726658,0.0004342,30]
[400465603,1767591661771,500.0,0.00043422,120]
[400465624,1767591853119,612.88,0.00013699,2]
[400465634,1767591884411,500.0,0.00043422,120]
[400465635,1767591884530,519.0,0.00043422,120]
[400465641,1767591961535,500.0,0.00043421,120]
[400465662,1767592178658,1648.81,0.00013,2]
[400465670,1767592231720,-166.66,0.0001636,2]
[400465671,1767592231731,-145.34,0.00016704,5]
[400465672,1767592231742,-6.49468441,0.00016704,5]
[400465673,1767592231753,-166.66,0.00016704,2]
[400465674,1767592231762,-200.0,0.00017045,2]
[400465676,1767592232006,-166.66,0.00017049,2]
[400465678,1767592232021,-1000.0,0.00017068,2]
[400465680,1767592232031,-153.82,0.00017069,2]
[400465682,1767592232042,-3213.577,0.000173,2]
[400465684,1767592232055,-166.66,0.00017393,2]
[400465686,1767592232065,-555.95,0.00017461,2]
[400465688,1767592232074,-678.95,0.000175,2]
[400465690,1767592232083,-1564.93436135,0.0001764,2]
[400465693,1767592232093,-166.66,0.00017737,2]
[400465694,1767592232102,-500.0,0.00017808,2]
[400465695,1767592232111,-498.76,0.00017808,2]
[400465696,1767592232121,-168.0,0.00017825,2]
[400465697,1767592232131,-168.0,0.00017832,2]
[400465698,1767592232140,-151.0,0.00017862,2]
[400465699,1767592232150,-151.0,0.00017863,2]
[400465700,1767592232159,-151.0,0.00017863,2]
[400465701,1767592232168,-151.0,0.00017863,2]
[400465702,1767592232177,-151.0,0.00017863,2]
[400465703,1767592232186,-151.0,0.00017863,2]
[400465704,1767592232195,-151.0,0.00017863,2]
[400465705,1767592232205,-151.0,0.00017863,2]
[400465706,1767592232217,-76930.9566568,0.00017989,2]
[400465707,1767592232228,-3466.0,0.00018,2]
[400465708,1767592232236,-1404.0,0.00018,2]
[400465709,1767592232246,-791.809,0.00018,2]
[400465710,1767592232255,-6548.0,0.00018,2]
[400465711,1767592232264,-2435.0,0.00018,2]
[400465712,1767592232274,-94072.48393207,0.00018,2]
[400465713,1767592232288,-3094.67489723,0.00018,2]
[400465714,1767592232299,-222458.98941909,0.00018,2]
[400465715,1767592232312,-1010.2,0.00018,2]
[400465716,1767592232326,-5307.82097488,0.00018,2]
[400465717,1767592232339,-212935.16765073,0.00018,2]
[400465718,1767592232351,-709.0,0.00018,2]
[400465719,1767592232363,-35325.11054983,0.00018,2]
[400465720,1767592232376,-1055.75751354,0.00018,2]
[400465728,1767592237882,-392.81,0.00018,2]
[400465729,1767592237891,-11840.52934785,0.00018,2]
[400465730,1767592237902,-1079.77207414,0.00018,2]
[400465731,1767592237914,-3485.69126713,0.00018,2]
[400465732,1767592237939,-4632.13382587,0.00018,2]
[400465733,1767592237950,-12544.9441137,0.00018,2]
[400465734,1767592237961,-36052.00000001,0.00018,2]
[400465735,1767592237973,-442.14799494,0.00018,2]
[400465736,1767592238003,-1364.2629872,0.00018,2]
[400465737,1767592238013,-1199.44426882,0.00018,2]
[400465745,1767592239957,-3941.45996463,0.00018,2]
[400465746,1767592240074,-1707.385599,0.00018,2]
[400465747,1767592240086,-486807.32266332,0.00018,2]
[400465756,1767592243630,-151.0,0.00017969,2]
[400465757,1767592243640,-151.0,0.00017969,2]
[400465758,1767592243649,-17.09323753,0.00018,2]
[400465759,1767592244663,-315.55,0.00018,2]
[400465760,1767592244722,-380.05252024,0.00018,2]
[400465765,1767592245801,-1876.8110829,0.00018,2]
[400465767,1767592245824,-1959.85386834,0.00018,2]
[400465769,1767592245885,-9252.6,0.00018,2]
[400465770,1767592261418,500.0,0.00043421,120]
[400465782,1767592418344,30545.47414168,0.00043421,30]
[400465783,1767592421394,1138.0,0.00016,6]
[400465832,1767593149132,-151.0,0.0001682,2]
[400465833,1767593149154,-151.0,0.0001682,2]
[400465834,1767593149177,-151.0,0.0001682,2]
[400465835,1767593149198,-151.0,0.0001682,2]
[400465836,1767593149219,-292.0,0.00016838,2]
[400465837,1767593149240,-3240.0,0.00016935,2]
[400465838,1767593149273,-152.58393277,0.00016975,6]
[400465839,1767593149292,-12.53435377,0.00017,2]
[400465856,1767593432200,-237.46564623,0.00017,2]
[400465857,1767593432210,-54.18593642,0.00017,2]
[400465858,1767593432221,-239.81406358,0.00017,2]
[400465859,1767593432232,-65.55593378,0.00017023,3]
[400465966,1767593438029,-228.48,0.00016607,2]
[400465967,1767593438039,-933.44406622,0.00017023,3]
[400465968,1767593438049,-164.1,0.00017023,2]
[400465969,1767593438058,-200.0,0.00017099,2]
[400465970,1767593438068,-178.79859769,0.00017099,2]
[400465971,1767593438077,-153.8387482,0.0001715,6]
[400465972,1767593438087,-1110.0790302,0.00017157,2]
[400465973,1767593438099,-1219.4609698,0.00017157,2]
[400465974,1767593438108,-302.3961,0.000172,2]
[400465975,1767593438118,-152.29,0.000173,2]
[400465976,1767593438128,-150.0,0.000173,2]
[400465977,1767593438137,-150.0,0.000173,2]
[400465978,1767593438147,-300.0,0.00017498,2]
[400465979,1767593438156,-1200.0,0.00017498,2]
[400465980,1767593438165,-498.1926586,0.00017499,2]
[400465981,1767593438177,-3527.05959674,0.00017499,2]
[400465982,1767593438189,-3508.99075609,0.00017499,2]
[400465983,1767593438206,-151.0,0.00016607,2]
[400465984,1767593438215,-2944.39698857,0.00017499,2]
[400465985,1767593438225,-499.30869009,0.00017574,2]
[400465989,1767593440427,-2559.63536459,0.00017574,2]
[400465990,1767593440436,-782.46718067,0.0001764,2]
[400465991,1767593440446,-168.0,0.0001772,2]
[400465992,1767593440456,-168.0,0.00017758,2]
[400465993,1767593440465,-166.66,0.00017788,2]
[400465994,1767593440475,-200.0,0.00017856,2]
[400465995,1767593440484,-2435.0,0.000179,2]
[400465996,1767593440494,-6548.0,0.000179,2]
[400465997,1767593440504,-168.0,0.00017941,2]
[400465998,1767593440514,-16494.2252391,0.00017995,2]
[400465999,1767593440524,-1171.02247827,0.00017999,5]
[400466000,1767593440534,-1171.02247827,0.00017999,5]
[400466001,1767593440545,-1171.02247828,0.00017999,5]
[400466002,1767593440555,-1404.0,0.00018,2]
[400466003,1767593440568,-538.0,0.00018,2]
[400466004,1767593440577,-451662.26744414,0.00018,2]
[400466008,1767593443739,-4867.0,0.00018,2]
[400466009,1767593444752,-1938.0774899,0.00018,2]
[400466010,1767593444764,-1491.625,0.00018,2]
[400466011,1767593444776,-1772.16665824,0.00018,2]
[400466014,1767593445927,-3281.0519054,0.00018,2]
[400466015,1767593446100,-2126.14853559,0.00018,2]
[400466016,1767593446112,-7237.45965814,0.00018,2]
[400466017,1767593446240,-477.90203184,0.00018,2]
[400466053,1767593655364,200.0,0.00016,2]
[400466135,1767593896284,201.0,0.00016,2]
[400466274,1767594201052,200.0,0.00015872,2]
[400466278,1767594310857,150.0,0.00032877,120]
[400466279,1767594318283,582.23,0.00013699,2]
[400466314,1767594559558,-300.0,0.00016199,2]
[400466315,1767594559581,-6117.28451,0.000162,5]
[400466349,1767594632095,-151.0,0.00016242,2]
[400466350,1767594632105,-262.86,0.00016251,2]
[400466351,1767594632115,-156.13423875,0.00016366,5]
[400466352,1767594632126,-1200.0,0.00016437,2]
[400466353,1767594632136,-3491.15,0.00016438,2]
[400466354,1767594632145,-151.0,0.00016811,2]
[400466355,1767594632154,-277.97,0.0001695,2]
[400466356,1767594632164,-153.89,0.00016981,2]
[400466357,1767594632172,-1000.0,0.00016981,2]
[400466358,1767594632183,-250.0,0.00017,2]
[400466359,1767594632192,-35938.71631,0.000171,2]
[400466360,1767594632207,-310.2158656,0.000171,2]
[400466361,1767594632219,-46050.0,0.000171,2]
[400466362,1767594632230,-10800.83059274,0.000171,2]
[400466363,1767594632275,-413.8620027,0.000171,2]
[400466372,1767594638196,-151.0,0.00016796,2]
[400466373,1767594638207,-99074.98360134,0.000171,2]
[400466374,1767594638219,-4042.10851116,0.000171,2]
[400466375,1767594638230,-7164.658889,0.000171,2]
[400466557,1767594640321,-461.645,0.000171,2]
[400466563,1767594640380,-67494.23482746,0.000171,2]
[400466565,1767594640391,-150.0,0.00017161,2]
[400466567,1767594640401,-508.60874789,0.00017199,2]
[400466569,1767594640410,-782.46718067,0.0001764,2]
[400466571,1767594640420,-482.22,0.00017736,2]
[400466573,1767594640430,-476.14,0.00017736,2]
[400466575,1767594640439,-250.0,0.00017789,2]
[400466577,1767594640448,-482.22,0.000178,2]
[400466579,1767594640458,-304001.36628419,0.000179,3]
[400466580,1767594640467,-10072.2571744,0.000179,2]
[400466582,1767594640476,-153.89,0.00017924,2]
[400466585,1767594640496,-2868.09122864,0.00017972,2]
[400466587,1767594640505,-12957.8144358,0.00017973,2]
[400466589,1767594640514,-1171.02247827,0.00017999,5]
[400466591,1767594640523,-1171.02247827,0.00017999,5]
[400466593,1767594640532,-1171.02247828,0.00017999,5]
[400466595,1767594640542,-2435.0,0.00018,2]
[400466596,1767594640551,-1404.0,0.00018,2]
[400466598,1767594640561,-6548.0,0.00018,2]
[400466600,1767594640570,-533.0,0.00018,2]
[400466602,1767594640579,-71694.94534945,0.00018,2]
[400466669,1767595319185,1086.77360736,0.00015999,2]
[400466711,1767595599015,1330.84549403,0.00032877,120]
[400466768,1767595832231,-198.44196421,0.00016038,2]
[400466769,1767595832242,-500.0,0.00016099,2]
[400466770,1767595832252,-151.0,0.00016164,2]
[400466771,1767595832261,-151.0,0.00016164,2]
[400466772,1767595832270,-166.66,0.00016171,2]
[400466773,1767595832280,-160.89231872,0.00016207,4]
[400466774,1767595832289,-151.0,0.00016234,2]
[400466775,1767595832298,-151.0,0.00016234,2]
[400466776,1767595832307,-166.66,0.00016512,2]
[400466777,1767595832316,-2132.0501041,0.0001663,2]
[400466778,1767595832325,-166.67,0.00016732,2]
[400466779,1767595832334,-166.66,0.00016852,2]
[400466780,1767595832343,-168.0,0.00016875,2]
[400466781,1767595832352,-168.0,0.00016918,2]
[400466782,1767595832361,-588.58,0.00016986,2]
[400466783,1767595832371,-57385.7544558,0.00017,2]
[400466784,1767595832382,-10108.4803442,0.00017,2]
[400466785,1767595832392,-366.87,0.00017024,2]
[400466786,1767595832401,-168.0,0.00017029,2]
[400466787,1767595832410,-300.0,0.0001704,2]
[400466788,1767595832419,-1200.0,0.0001704,2]
[400466789,1767595832428,-482.38,0.00017041,2]
[400466790,1767595832437,-661.02,0.00017041,2]
[400466791,1767595832446,-482.38,0.00017041,2]
[400466792,1767595832455,-661.02,0.00017041,2]
[400466793,1767595832465,-661.02,0.00017041,2]
[400466794,1767595832474,-482.38,0.00017041,2]
[400466795,1767595832483,-482.38,0.00017041,2]
[400466796,1767595832494,-661.02,0.00017041,2]
[400466797,1767595832503,-482.38,0.00017041,2]
[400466799,1767595832512,-661.02,0.00017041,2]
[400466800,1767595832521,-168.0,0.00017069,2]
[400466801,1767595832530,-1200.0,0.00017095,2]
[400466802,1767595832539,-550.0,0.00017099,2]
[400466803,1767595832548,-1040.94,0.00017099,2]
[400466804,1767595832557,-181.52195244,0.00017099,2]
[400466805,1767595832566,-200.0,0.00017099,2]
[400466807,1767595832575,-207.4,0.00017099,2]
[400466808,1767595832585,-215.0738,0.00017099,2]
[400466809,1767595832594,-223.0315306,0.00017099,2]
[400466811,1767595832603,-231.28369723,0.00017099,2]
[400466813,1767595832612,-239.84119403,0.00017099,2]
[400466814,1767595832621,-248.71531821,0.00017099,2]
[400466815,1767595832630,-257.91778498,0.00017099,2]
[400466816,1767595832639,-267.46074303,0.00017099,2]
[400466817,1767595832648,-277.35679052,0.00017099,2]
[400466818,1767595832657,-153.62876368,0.000171,2]
[400466819,1767595832666,-2383.94028498,0.000171,2]
[400466820,1767595832678,-1975.34666119,0.000171,2]
[400466821,1767595832689,-518.0,0.000171,2]
[400466822,1767595832701,-322.59321388,0.000171,2]
[400466823,1767595832711,-3140.35799868,0.000171,2]
[400466824,1767595832722,-1028.25764269,0.000171,2]
[400466825,1767595832733,-5978.33274471,0.000171,2]
[400466826,1767595832744,-260.03248731,0.000171,2]
[400466827,1767595832755,-1190.51079332,0.000171,2]
[400466828,1767595832766,-11367.31893508,0.000171,2]
[400466829,1767595832777,-392.37309561,0.000171,2]
[400466830,1767595832788,-906.816,0.000171,2]
[400466831,1767595832804,-1957.15258626,0.000171,2]
[400466833,1767595838429,-151.0,0.00016248,2]
[400466834,1767595838439,-151.0,0.00016248,2]
[400466835,1767595838459,-2139.61655629,0.000171,2]
[400466836,1767595838470,-266.46,0.00017111,2]
[400466837,1767595838480,-408.92350244,0.00017173,2]
[400466838,1767595838490,-622.4904723,0.00017178,2]
[400466839,1767595838499,-152.64,0.00017178,2]
[400466840,1767595838508,-178.94,0.00017178,2]
[400466841,1767595838518,-153.63,0.00017178,2]
[400466842,1767595838528,-171.08,0.00017178,2]
[400466843,1767595838538,-150.0,0.00017178,2]
[400466844,1767595838548,-178.94,0.00017178,2]
[400466845,1767595838557,-178.75,0.00017178,2]
[400466846,1767595838567,-177.7,0.00017178,2]
[400466847,1767595838576,-150.0,0.00017178,2]
[400466848,1767595838586,-150.0,0.00017178,2]
[400466849,1767595838595,-166.66,0.00017192,2]
[400466850,1767595838605,-168.0,0.00017194,2]
[400466851,1767595838614,-168.0,0.00017312,2]
[400466852,1767595838623,-1235.0,0.00017327,2]
[400466853,1767595838633,-766.20244319,0.00017373,2]
[400466854,1767595838645,-274.73755681,0.00017373,2]
[400466855,1767595838655,-175.59,0.00017378,2]
[400466856,1767595838665,-1235.0,0.00017387,2]
[400466857,1767595838675,-168.0,0.00017419,2]
[400466858,1767595838684,-162.9821105,0.00017441,2]
[400466859,1767595838694,-503.95049056,0.00017471,2]
[400466860,1767595838704,-1007.22571744,0.00017486,2]
[400466861,1767595838714,-143.57471505,0.0001753,2]
[400466862,1767595838725,-542.46609112,0.0001753,2]
[400466863,1767595838737,-548.95919383,0.0001753,2]
[400466864,1767595838746,-75.08933088,0.00017532,2]
[400466865,1767595838758,-932.13638656,0.00017532,2]
[400466866,1767595838767,-166.66,0.00017533,2]
[400466867,1767595838776,-1007.22571744,0.00017578,2]
[400466868,1767595838786,-1235.0,0.00017579,2]
[400466869,1767595838795,-29292.9778959,0.00017586,2]
[400466870,1767595838810,-106423.7870902,0.00017586,2]
[400466871,1767595838820,-16111.987117,0.00017586,2]
[400466872,1767595838830,-85612.64260317,0.00017586,2]
[400466875,1767595840439,-180839.36684431,0.00017586,2]
[400466876,1767595840451,-2671.83692481,0.00017586,2]
[400466877,1767595840512,-2335.93824332,0.00017586,2]
[400466878,1767595840583,-4528.50862059,0.00017586,2]
[400466879,1767595840592,-3536.4108034,0.00017586,2]
[400466880,1767595840602,-3368.6934332,0.00017586,2]
[400466881,1767595840612,-14591.8167363,0.0001759,2]
[400466882,1767595840622,-1007.22571744,0.00017624,2]
[400466883,1767595840632,-2100.02397756,0.0001764,2]
[400466884,1767595840642,-1040.94,0.00017647,2]
[400466885,1767595840652,-166.67,0.00017653,2]
[400466886,1767595840662,-1007.22571744,0.0001767,2]
[400466887,1767595840671,-287.9981631,0.00017681,2]
[400466888,1767595840681,-1000.0,0.000177,2]
[400466889,1767595840692,-1791.95470647,0.00017709,2]
[400466890,1767595840701,-1235.0,0.00017716,2]
[400466891,1767595840714,-1007.22571744,0.00017716,2]
[400466892,1767595840724,-6717.17,0.00017728,2]
[400466893,1767595840734,-4829.22,0.00017728,2]
[400466894,1767595840744,-12675.15,0.00017728,2]
[400466895,1767595840753,-3943.36,0.00017728,2]
[400466896,1767595840763,-19997.22,0.00017728,2]
[400466897,1767595840772,-9999.99,0.00017728,2]
[400466898,1767595840781,-999.99,0.00017728,2]
[400466900,1767595840791,-512.76,0.00017728,2]
[400466902,1767595840800,-150.99,0.00017728,2]
[400466904,1767595840809,-524.73,0.00017728,5]
[400466905,1767595840819,-1235.0,0.00017743,2]
[400466906,1767595840828,-1007.22571744,0.00017762,2]
[400466907,1767595840838,-6132.95085323,0.00017767,2]
[400466908,1767595840847,-1007.22571744,0.00017808,2]
[400466909,1767595840857,-270.4079,0.0001782,2]
[400466910,1767595840867,-270.4079,0.0001782,2]
[400466911,1767595840876,-26447.9578998,0.0001783,2]
[400466912,1767595840885,-656.686003,0.0001783,2]
[400466913,1767595840895,-656.686003,0.0001783,2]
[400466914,1767595840906,-656.686003,0.0001783,2]
[400466915,1767595840919,-656.686003,0.0001783,2]
[400466916,1767595840928,-270.40791,0.0001783,2]
[400466917,1767595840938,-151.0,0.0001783,2]
[400466918,1767595840948,-151.0,0.0001783,2]
[400466919,1767595840958,-1007.22571744,0.00017854,2]
[400466920,1767595840968,-270.4079,0.0001786,2]
[400466922,1767595840977,-166.66,0.00017873,2]
[400466923,1767595840987,-270.4079,0.0001788,2]
[400466924,1767595840997,-10000.0,0.000179,2]
[400466925,1767595841007,-2169.72886083,0.000179,2]
[400466926,1767595841017,-1000.0,0.000179,2]
[400466927,1767595841027,-1007.22571744,0.000179,2]
[400466928,1767595841036,-270.40791,0.0001791,2]
[400466929,1767595841046,-1040.94,0.00017921,2]
[400466930,1767595841055,-151.216,0.00017972,2]
[400466931,1767595841065,-500.0,0.00017973,2]
[400466932,1767595841074,-517.25462931,0.00017982,2]
[400466933,1767595841084,-1171.02247828,0.00017999,5]
[400466934,1767595841094,-1171.02247827,0.00017999,5]
[400466935,1767595841103,-1171.02247827,0.00017999,5]
[400466936,1767595841116,-1078.47859341,0.00017999,2]
[400466937,1767595841125,-317.47275185,0.00017999,2]
[400466938,1767595841135,-614.0,0.00018,2]
[400466939,1767595841144,-3466.0,0.00018,2]
[400466940,1767595841153,-1404.0,0.00018,2]
[400466941,1767595841163,-433.0,0.00018,2]
[400466942,1767595841175,-1266.0,0.00018,2]
[400466943,1767595841184,-150.0,0.00018,2]
[400466944,1767595841194,-6548.0,0.00018,2]
[400466945,1767595841208,-200.0,0.00018,2]
[400466946,1767595841218,-1200.0,0.00018,2]
[400466947,1767595841228,-2435.0,0.00018,2]
[400466948,1767595841238,-150.133,0.00018,2]
[400466949,1767595841250,-541.0,0.00018,2]
[400466950,1767595841260,-145451.63754672,0.00018,2]
[400466951,1767595841271,-163077.45719865,0.00018,2]
[400466952,1767595841651,-4181520.92380813,0.00018,2]
[400466953,1767595841665,-369.0,0.00018,2]
[400466954,1767595841677,-725.91164319,0.00018,2]
[400466958,1767595844057,-14785.43439763,0.00018,2]
[400466959,1767595844070,-7642.26742386,0.00018,2]
[400466960,1767595844082,-472.3197,0.00018,2]
[400466963,1767595844997,-188447.19225893,0.00018,2]
[400466998,1767595846175,180.0,8.123e-05,2]
[400467013,1767595846300,-6299.80000002,0.00018,2]
[400467026,1767595846422,-180.0,0.00016245,2]
[400467028,1767595846431,-3004.04205921,0.00018,2]
[400467030,1767595846442,-3316.14275065,0.00018,2]
[400467045,1767595846571,-236.93370064,0.00018,2]
[400467179,1767596288490,150.0,0.00016,2]
[400467210,1767596474454,282.15895719,0.0003287,120]
[400467315,1767596952324,3363.3,0.00032877,120]
[400467332,1767597031536,-347.075,0.00016245,2]
[400467333,1767597031593,-1581.24028775,0.00016245,2]
[400467334,1767597031605,-637.21272945,0.00016245,2]
[400467335,1767597031614,-67.67823155,0.00016245,2]
[400467336,1767597031629,-182.32176845,0.00016245,2]
[400467337,1767597031639,-300.0,0.00016245,2]
[400467338,1767597031648,-111.36382998,0.00016245,2]
[400467469,1767597037499,-52.73617002,0.00016245,2]
[400467470,1767597037509,-375.58262506,0.00016269,2]
[400467471,1767597037519,-303.57738446,0.00016269,2]
[400467472,1767597037532,-247.29,0.00016282,2]
[400467473,1767597037543,-11.80059214,0.00016326,2]
[400467474,1767597037555,-975.13,0.00016326,2]
[400467475,1767597037617,-213.06940786,0.00016326,2]
[400467476,1767597037627,-79.62692814,0.00016333,2]
[400467477,1767597037638,-1120.37307186,0.00016333,2]
[400467478,1767597037647,-300.0,0.00016334,2]
[400467479,1767597037659,-500.0,0.00016335,2]
[400467480,1767597037668,-151.0,0.00016335,2]
[400467481,1767597037678,-151.0,0.00016335,2]
[400467482,1767597037687,-151.0,0.00016336,2]
[400467483,1767597037697,-151.0,0.00016336,2]
[400467484,1767597037706,-629.57143339,0.00016389,3]
[400467490,1767597039649,-151.0,0.00016344,2]
[400467491,1767597039658,-369.42856661,0.00016389,3]
[400467492,1767597039668,-172.83085853,0.0001641,5]
[400467493,1767597039677,-4209.59,0.00016438,2]
[400467494,1767597039686,-14739.11303416,0.00016675,2]
[400467495,1767597039695,-4549.37,0.00016872,2]
[400467496,1767597039705,-257.49,0.00016872,2]
[400467497,1767597039714,-47548.94184219,0.00016885,2]
[400467498,1767597039725,-19763.67566754,0.00016885,2]
[400467499,1767597039736,-1172.0529138,0.00016885,2]
[400467500,1767597039747,-9822.04936463,0.00016885,2]
[400467501,1767597039761,-318.407583,0.00016885,2]
[400467502,1767597039772,-4618.87834935,0.00016885,2]
[400467503,1767597039784,-2184.25360571,0.00016885,2]
[400467504,1767597039795,-208788.74287378,0.00016885,2]
[400467505,1767597039805,-661.02,0.000169,2]